[Event "Israel-ch Women 2021"]
[Site "Haifa"]
[Date "2021.03.07"]
[Round "1.18"]
[White "Gadasi, Noam"]
[Black "Katkov, Michelle"]
[Result "0-1"]
[ECO "E04"]
[WhiteElo "1781"]
[BlackElo "2078"]
[Annotator "ChessBase"]
[PlyCount "82"]
[EventDate "2021.01.10"]
[EventType "swiss"]
[EventCountry "ISR"]
[SourceTitle "playchess.com"]
[Source "ChessBase"]
[SourceQuality "1"]
[TimeControl "40/5400+30:3600+30"]

1. c4 {[%emt 0:00:00]} Nf6 {[%emt 0:00:04]} 2. g3 {[%emt 0:00:00]} e6 {[%emt 0:01:12]} 3. Bg2 {[%emt 0:00:10]} d5 {[%emt 0:00:35]} 4. d4 {[%emt 0:00:36]} dxc4 {[%emt 0:01:15]} 5. Nf3 {[%emt 0:00:36]} a6 {[%emt 0:02:38]} 6. O-O {[%emt 0:02:04]} Nc6 {[%emt 0:00:10]} 7. e3 {[%emt 0:01:03]} Rb8 {[%emt 0:01:30]} 8. Qe2 {[%emt 0:05:06]} b5 {[%emt 0:01:50]} 9. b3 {[%emt 0:00:45]} cxb3 {[%emt 0:00:38]} 10. axb3 {[%emt 0:00:12]} Be7 {[%emt 0:05:42]} 11. Bb2 {[%emt 0:03:28]} O-O {[%emt 0:03:42]} 12. Rc1 {[%emt 0:03:10]} Bb7 {[%emt 0:12:00]} 13. Nbd2 {[%emt 0:02:37]} Nb4 {[%emt 0:01:45]} 14. Ne5 {[%emt 0:20:29]} Bxg2 {[%emt 0:00:52]} 15. Kxg2 {[%emt 0:00:10]} Rb6 {[%emt 0:04:02]} 16. Qf3 {[%emt 0:06:31]} Bd6 {[%emt 0:10:52]} 17. Nc6 {[%emt 0:06:51]} Qa8 {[%emt 0:04:50]} 18. Nxb4 {[%emt 0:01:16]} Bxb4 {[%emt 0:00:12]} 19. Bc3 {[%emt 0:00:59]} Bxc3 {[%emt 0:03:21]} 20. Rxc3 {[%emt 0:01:01]} Nd5 {[%emt 0:04:23]} 21. Rc5 {[%emt 0:03:48]} Rc6 {[%emt 0:03:43]} 22. Ne4 {[%emt 0:06:20]} Rxc5 {[%emt 0:00:50]} 23. Nxc5 {[%emt 0:00:21]} Nb4 {[%emt 0:04:13]} 24. e4 {[%emt 0:02:57]} Rd8 {[%emt 0:02:45]} 25. Qc3 {[%emt 0:01:36]} a5 {[%emt 0:01:34]} 26. Rxa5 {[%emt 0:09:51]} Qxa5 {[%emt 0:00:11]} 27. Nb7 {[%emt 0:00:08]} Qa8 {[%emt 0:00:44]} 28. Nxd8 {[%emt 0:00:20]} Qxe4+ {[%emt 0:00:15]} 29. Qf3 {[%emt 0:00:23]} Qxf3+ {[%emt 0:01:25]} 30. Kxf3 {[%emt 0:00:03]} Kf8 {[%emt 0:02:07]} 31. Ke3 {[%emt 0:04:41]} Ke7 {[%emt 0:00:07]} 32. Nb7 {[%emt 0:00:07]} Kd7 {[%emt 0:05:14]} 33. Nc5+ {[%emt 0:01:03]} Kc6 {[%emt 0:03:35]} 34. Ne4 {[%emt 0:02:42]} f5 {[%emt 0:03:07]} 35. Nc3 {[%emt 0:01:09]} Nd5+ {[%emt 0:04:41]} 36. Kd3 {[%emt 0:08:39]} Nxc3 {[%emt 0:02:50]} 37. Kxc3 {[%emt 0:00:03]} Kd5 {[%emt 0:02:52]} 38. f4 {[%emt 0:01:24]} c5 {[%emt 0:01:09]} 39. dxc5 {[%emt 0:00:12]} Kxc5 {[%emt 0:00:02]} 40. h3 {[%emt 0:01:51]} h6 {[%emt 0:01:11]} 41. h4 {[%emt 1:00:46]} g6 {[%emt 1:01:01]} 0-1

[Event "Israel-ch Women 2021"]
[Site "Haifa"]
[Date "2021.03.07"]
[Round "1.19"]
[White "Levitan, Ronit"]
[Black "Aleksandrova, Aleksandra"]
[Result "1-0"]
[ECO "B12"]
[WhiteElo "2048"]
[BlackElo "1769"]
[Annotator "ChessBase"]
[PlyCount "75"]
[EventDate "2021.01.10"]
[EventType "swiss"]
[EventCountry "ISR"]
[SourceTitle "playchess.com"]
[Source "ChessBase"]
[SourceQuality "1"]
[TimeControl "40/5400+30:3600+30"]

1. e4 {[%emt 0:00:00]} d6 {[%emt 0:00:00]} 2. d4 {[%emt 0:00:00]} c6 {[%emt 0:00:00]} 3. Nc3 {[%emt 0:00:49]} Nd7 {[%emt 0:00:00]} 4. Nf3 {[%emt 0:00:33]} Qc7 {[%emt 0:00:20]} 5. a4 {[%emt 0:02:23]} e5 {[%emt 0:02:07]} 6. Bc4 {[%emt 0:02:34]} Be7 {[%emt 0:05:00]} 7. a5 {[%emt 0:10:35]} Rb8 {[%emt 0:01:29]} 8. Ng5 {[%emt 0:05:15]} Bxg5 {[%emt 0:02:08]} 9. Bxg5 {[%emt 0:00:06]} Ndf6 {[%emt 0:00:30]} 10. O-O {[%emt 0:02:57]} h6 {[%emt 0:01:52]} 11. Be3 {[%emt 0:05:56]} b5 {[%emt 0:05:29]} 12. axb6 {[%emt 0:10:53]} axb6 {[%emt 0:00:07]} 13. dxe5 {[%emt 0:09:50]} dxe5 {[%emt 0:00:03]} 14. Be2 {[%emt 0:02:44]} Be6 {[%emt 0:24:59]} 15. f3 {[%emt 0:01:18]} Nd7 {[%emt 0:02:12]} 16. Qe1 {[%emt 0:01:11]} Ne7 {[%emt 0:02:25]} 17. Qg3 {[%emt 0:01:49]} Ng6 {[%emt 0:00:33]} 18. Na2 {[%emt 0:13:07]} O-O {[%emt 0:07:09]} 19. Nb4 {[%emt 0:01:22]} Qd6 {[%emt 0:02:05]} 20. Nd3 {[%emt 0:01:13]} Nf6 {[%emt 0:01:27]} 21. Ra6 {[%emt 0:07:55]} Bc4 {[%emt 0:16:27]} 22. Rxb6 {[%emt 0:01:35]} Rxb6 {[%emt 0:00:51]} 23. Bxb6 {[%emt 0:00:05]} Bxd3 {[%emt 0:06:01]} 24. Bxd3 {[%emt 0:01:55]} Nf4 {[%emt 0:01:04]} 25. Be3 {[%emt 0:01:19]} N6h5 {[%emt 0:03:39]} 26. Qg4 {[%emt 0:02:02]} Nf6 {[%emt 0:00:02]} 27. Qh4 {[%emt 0:02:24]} Nxd3 {[%emt 0:00:31]} 28. cxd3 {[%emt 0:00:03]} Qxd3 {[%emt 0:00:04]} 29. Bxh6 {[%emt 0:02:01]} Qd4+ {[%emt 0:00:07]} 30. Kh1 {[%emt 0:00:14]} Qd3 {[%emt 0:03:57]} 31. Rg1 {[%emt 0:00:55]} Nxe4 {[%emt 0:02:13]} 32. Bxg7 {[%emt 0:01:05]} Kxg7 {[%emt 0:01:56]} 33. fxe4 {[%emt 0:00:11]} Qd4 {[%emt 0:01:19]} 34. Rf1 {[%emt 0:02:32]} f6 {[%emt 0:00:03]} 35. Qg4+ {[%emt 0:00:30]} Kf7 {[%emt 0:09:21]} 36. Rd1 {[%emt 0:00:21]} Qc4 {[%emt 0:00:00]} 37. h3 {[%emt 0:02:47]} Qe6 {[%emt 0:00:00]} 38. Rd7+ {[%emt 0:00:17]} 1-0

[Event "Israel-ch Women 2021"]
[Site "Haifa"]
[Date "2021.03.07"]
[Round "1.22"]
[White "Orian, Noga"]
[Black "Reprun, Nadejda"]
[Result "1/2-1/2"]
[ECO "D02"]
[WhiteElo "1658"]
[BlackElo "1968"]
[Annotator "ChessBase"]
[PlyCount "65"]
[EventDate "2021.01.10"]
[EventType "swiss"]
[EventCountry "ISR"]
[SourceTitle "playchess.com"]
[Source "ChessBase"]
[SourceQuality "1"]
[TimeControl "40/5400+30:3600+30"]

1. d4 {[%emt 0:00:00]} d5 {[%emt 0:00:00]} 2. Nf3 {[%emt 0:00:00]} Nf6 {[%emt 0:00:00]} 3. Bf4 {[%emt 0:00:00]} e6 {[%emt 0:00:00]} 4. e3 {[%emt 0:00:00]} Bd6 {[%emt 0:00:00]} 5. Bxd6 {[%emt 0:00:04]} Qxd6 {[%emt 0:00:01]} 6. c4 {[%emt 0:00:08]} O-O {[%emt 0:02:07]} 7. Nc3 {[%emt 0:00:32]} c5 {[%emt 0:09:25]} 8. cxd5 {[%emt 0:01:35]} exd5 {[%emt 0:06:33]} 9. Be2 {[%emt 0:04:38]} Nc6 {[%emt 0:06:19]} 10. O-O {[%emt 0:02:34]} c4 {[%emt 0:00:53]} 11. Rc1 {[%emt 0:09:47]} Rb8 {[%emt 0:05:53]} 12. b3 {[%emt 0:17:15]} b5 {[%emt 0:01:40]} 13. bxc4 {[%emt 0:20:18]} bxc4 {[%emt 0:00:46]} 14. Nd2 {[%emt 0:05:46]} Re8 {[%emt 0:05:17]} 15. e4 Nxd4 {[%emt 0:10:27]} 16. exd5 {[%emt 0:04:22]} Nxe2+ {[%emt 0:03:29]} 17. Nxe2 {[%emt 0:00:07]} Qxd5 {[%emt 0:05:34]} 18. Nc3 {[%emt 0:03:29]} Qd3 {[%emt 0:01:54]} 19. Nf3 {[%emt 0:07:35]} Qxd1 {[%emt 0:02:54]} 20. Rfxd1 {[%emt 0:21:50]} Bf5 {[%emt 0:04:12]} 21. Nd5 {[%emt 0:00:00]} Bd3 {[%emt 0:03:31]} 22. Nxf6+ {[%emt 0:00:00]} gxf6 {[%emt 0:00:02]} 23. Ne1 {[%emt 0:00:00]} Re2 {[%emt 0:03:40]} 24. Nxd3 {[%emt 0:00:00]} cxd3 {[%emt 0:00:08]} 25. Rxd3 {[%emt 0:00:00]} Rxa2 {[%emt 0:03:11]} 26. Rf3 {[%emt 0:00:00]} Rab2 {[%emt 0:05:30]} 27. Rxf6 {[%emt 0:00:00]} Rb1 {[%emt 0:00:04]} 28. Rfc6 {[%emt 0:00:00]} Rxc1+ {[%emt 0:00:30]} 29. Rxc1 {[%emt 0:00:00]} a5 {[%emt 0:00:24]} 30. Kf1 {[%emt 0:00:00]} a4 {[%emt 0:03:32]} 31. Ra1 {[%emt 0:00:00]} Rb4 {[%emt 0:00:28]} 32. Ra2 {[%emt 0:00:00]} h5 {[%emt 0:03:40]} 33. Ke2 {[%emt 0:00:00]} 1/2-1/2

[Event "Israel-ch Women 2021"]
[Site "Haifa"]
[Date "2021.03.07"]
[Round "1.23"]
[White "Vardi, Shlomit"]
[Black "Kochavi, Dana"]
[Result "1-0"]
[ECO "B10"]
[WhiteElo "1901"]
[BlackElo "1572"]
[Annotator "ChessBase"]
[PlyCount "75"]
[EventDate "2021.01.10"]
[EventType "swiss"]
[EventCountry "ISR"]
[SourceTitle "playchess.com"]
[Source "ChessBase"]
[SourceQuality "1"]
[TimeControl "40/5400+30:3600+30"]

1. e4 {[%emt 0:00:00]} c6 {[%emt 0:00:00]} 2. d3 {[%emt 0:00:00]} d5 {[%emt 0:00:00]} 3. Nd2 {[%emt 0:00:00]} e5 {[%emt 0:00:00]} 4. Ngf3 {[%emt 0:00:05]} Bd6 {[%emt 0:00:00]} 5. g3 {[%emt 0:00:22]} Nf6 {[%emt 0:01:25]} 6. Bg2 {[%emt 0:00:23]} O-O {[%emt 0:00:25]} 7. O-O {[%emt 0:00:22]} Re8 {[%emt 0:02:28]} 8. c3 {[%emt 0:02:48]} a5 {[%emt 0:03:02]} 9. Re1 {[%emt 0:04:40]} Qc7 {[%emt 0:15:50]} 10. h3 {[%emt 0:20:28]} Nbd7 {[%emt 0:10:12]} 11. Nf1 {[%emt 0:13:38]} dxe4 {[%emt 0:04:08]} 12. dxe4 {[%emt 0:00:06]} Nc5 {[%emt 0:00:08]} 13. Nh4 {[%emt 0:01:43]} h6 {[%emt 0:04:06]} 14. Qc2 {[%emt 0:15:50]} Be6 {[%emt 0:03:40]} 15. Ne3 {[%emt 0:02:34]} Bf8 {[%emt 0:04:51]} 16. Rd1 {[%emt 0:11:59]} b5 {[%emt 0:06:27]} 17. b3 {[%emt 0:02:11]} a4 {[%emt 0:06:07]} 18. Rb1 {[%emt 0:04:14]} axb3 {[%emt 0:03:12]} 19. axb3 {[%emt 0:00:06]} Ra7 {[%emt 0:00:27]} 20. b4 {[%emt 0:04:34]} Ncd7 {[%emt 0:00:07]} 21. c4 {[%emt 0:01:13]} bxc4 {[%emt 0:00:52]} 22. Nxc4 {[%emt 0:00:32]} Rea8 {[%emt 0:01:01]} 23. Bd2 {[%emt 0:05:11]} Ra2 {[%emt 0:02:45]} 24. Qc3 {[%emt 0:01:36]} Bxc4 {[%emt 0:02:14]} 25. Qxc4 {[%emt 0:00:05]} Nb6 {[%emt 0:00:08]} 26. Qc1 {[%emt 0:00:39]} Qb7 {[%emt 0:03:52]} 27. Be3 {[%emt 0:02:41]} Nbd7 {[%emt 0:04:25]} 28. Qc4 {[%emt 0:02:13]} R2a4 {[%emt 0:01:07]} 29. Nf5 {[%emt 0:01:08]} Qc7 {[%emt 0:01:01]} 30. Rdc1 {[%emt 0:00:56]} c5 {[%emt 0:02:43]} 31. Qb5 {[%emt 0:00:36]} Qb8 {[%emt 0:02:34]} 32. bxc5 {[%emt 0:00:51]} Qxb5 {[%emt 0:01:18]} 33. Rxb5 {[%emt 0:00:05]} Rc8 {[%emt 0:00:11]} 34. c6 {[%emt 0:01:05]} Nb8 {[%emt 0:00:36]} 35. c7 {[%emt 0:01:02]} Nbd7 {[%emt 0:00:40]} 36. Rb7 {[%emt 0:00:44]} Nxe4 {[%emt 0:03:03]} 37. Bxe4 {[%emt 0:00:23]} Rxe4 {[%emt 0:00:05]} 38. Rd1 {[%emt 0:00:12]} 1-0

[Event "Israel-ch Women 2021"]
[Site "Haifa"]
[Date "2021.03.08"]
[Round "2.18"]
[White "Katkov, Michelle"]
[Black "Levitan, Ronit"]
[Result "1-0"]
[ECO "C54"]
[WhiteElo "2078"]
[BlackElo "2048"]
[Annotator "ChessBase"]
[PlyCount "155"]
[EventDate "2021.01.10"]
[EventType "swiss"]
[EventCountry "ISR"]
[SourceTitle "playchess.com"]
[Source "ChessBase"]
[SourceQuality "1"]
[TimeControl "40/5400+30:3600+30"]

1. e4 {[%emt 0:00:00]} e5 {[%emt 0:00:16]} 2. Nf3 {[%emt 0:00:00]} Nc6 {[%emt 0:00:07]} 3. Bc4 {[%emt 0:00:00]} Bc5 {[%emt 0:00:05]} 4. c3 {[%emt 0:00:00]} Nf6 {[%emt 0:00:05]} 5. d3 {[%emt 0:00:00]} d6 {[%emt 0:00:08]} 6. Nbd2 {[%emt 0:00:03]} Bb6 {[%emt 0:00:12]} 7. Bb3 {[%emt 0:00:27]} Ne7 {[%emt 0:00:10]} 8. Nc4 {[%emt 0:00:31]} Ng6 {[%emt 0:01:15]} 9. h3 {[%emt 0:01:40]} h6 {[%emt 0:04:28]} 10. O-O {[%emt 0:00:31]} O-O {[%emt 0:00:53]} 11. Re1 {[%emt 0:01:20]} c6 {[%emt 0:03:51]} 12. Nxb6 {[%emt 0:01:13]} Qxb6 {[%emt 0:00:07]} 13. d4 {[%emt 0:04:11]} Re8 {[%emt 0:08:16]} 14. Be3 {[%emt 0:03:22]} c5 {[%emt 0:06:34]} 15. dxc5 {[%emt 0:04:48]} dxc5 {[%emt 0:00:11]} 16. Nd2 {[%emt 0:11:45]} Qc7 {[%emt 0:10:42]} 17. Qf3 {[%emt 0:01:49]} Qe7 {[%emt 0:01:16]} 18. a4 {[%emt 0:12:39]} b6 {[%emt 0:05:35]} 19. Nf1 {[%emt 0:03:54]} Bb7 {[%emt 0:03:37]} 20. Qg3 {[%emt 0:18:39]} Kh8 {[%emt 0:02:09]} 21. f3 {[%emt 0:05:59]} Nh5 {[%emt 0:04:22]} 22. Qf2 {[%emt 0:00:06]} Ngf4 {[%emt 0:05:05]} 23. Red1 {[%emt 0:02:00]} f5 {[%emt 0:01:56]} 24. exf5 {[%emt 0:05:09]} e4 {[%emt 0:00:37]} 25. Bxf4 {[%emt 0:12:03]} Nxf4 {[%emt 0:00:24]} 26. fxe4 {[%emt 0:00:40]} Qxe4 {[%emt 0:01:32]} 27. Ng3 {[%emt 0:00:07]} Qxg2+ {[%emt 0:04:51]} 28. Qxg2 {[%emt 0:00:04]} Bxg2 {[%emt 0:01:33]} 29. Kh2 {[%emt 0:05:25]} Bxh3 {[%emt 0:07:45]} 30. Rd7 {[%emt 0:01:35]} Bg4 {[%emt 0:01:24]} 31. Rf1 {[%emt 0:00:50]} Ne2 {[%emt 0:04:04]} 32. Nxe2 {[%emt 0:01:46]} Rxe2+ {[%emt 0:00:42]} 33. Kg3 {[%emt 0:00:07]} h5 {[%emt 0:00:07]} 34. Bd1 {[%emt 0:02:47]} Re3+ {[%emt 0:03:27]} 35. Kh4 {[%emt 0:00:56]} Bxd1 {[%emt 0:02:18]} 36. Rfxd1 {[%emt 0:00:02]} Rae8 {[%emt 0:01:29]} 37. Rg1 {[%emt 0:01:09]} R8e7 {[%emt 0:03:22]} 38. Rd8+ {[%emt 0:00:23]} Re8 {[%emt 0:01:21]} 39. Rd7 {[%emt 0:00:13]} R8e7 {[%emt 0:00:07]} 40. Rd8+ {[%emt 0:00:24]} Re8 {[%emt 0:00:11]} 41. Rxe8+ {[%emt 0:31:36]} Rxe8 {[%emt 0:30:06]} 42. Kxh5 {[%emt 0:00:06]} Kh7 {[%emt 0:02:04]} 43. Rd1 {[%emt 0:05:43]} Re7 {[%emt 0:01:54]} 44. Rd2 {[%emt 0:02:16]} Rf7 {[%emt 0:05:25]} 45. Kg5 {[%emt 0:00:27]} Re7 {[%emt 0:00:08]} 46. Rd3 {[%emt 0:05:04]} Re2 {[%emt 0:03:19]} 47. b3 {[%emt 0:01:05]} Re7 {[%emt 0:04:57]} 48. Kf4 {[%emt 0:01:06]} Kg8 {[%emt 0:01:09]} 49. Re3 {[%emt 0:01:17]} Rd7 {[%emt 0:01:44]} 50. Ke4 {[%emt 0:00:33]} Kf7 {[%emt 0:01:28]} 51. Rd3 {[%emt 0:00:12]} Re7+ {[%emt 0:01:08]} 52. Kf4 {[%emt 0:01:28]} Kf6 {[%emt 0:01:52]} 53. Rd6+ {[%emt 0:00:05]} Kf7 {[%emt 0:00:03]} 54. Rd8 {[%emt 0:00:26]} Rc7 {[%emt 0:01:17]} 55. Ke5 {[%emt 0:01:16]} Re7+ {[%emt 0:00:28]} 56. Kd5 {[%emt 0:01:40]} Kf6 {[%emt 0:06:29]} 57. Rf8+ {[%emt 0:00:20]} Kg5 {[%emt 0:00:04]} 58. b4 {[%emt 0:01:59]} Re3 {[%emt 0:05:41]} 59. bxc5 {[%emt 0:00:15]} bxc5 {[%emt 0:00:39]} 60. c4 {[%emt 0:00:47]} Ra3 {[%emt 0:03:33]} 61. Kxc5 {[%emt 0:00:04]} Rxa4 {[%emt 0:00:07]} 62. Kd5 {[%emt 0:02:03]} Ra1 {[%emt 0:01:34]} 63. c5 {[%emt 0:00:09]} a5 {[%emt 0:00:38]} 64. c6 {[%emt 0:00:05]} Rd1+ {[%emt 0:01:20]} 65. Ke6 {[%emt 0:01:43]} Re1+ {[%emt 0:00:39]} 66. Kd6 {[%emt 0:00:06]} Rd1+ {[%emt 0:00:13]} 67. Kc5 {[%emt 0:02:58]} Rc1+ {[%emt 0:00:11]} 68. Kb6 {[%emt 0:00:11]} a4 {[%emt 0:01:19]} 69. c7 {[%emt 0:01:24]} a3 {[%emt 0:00:26]} 70. c8=Q {[%emt 0:00:05]} Rxc8 {[%emt 0:00:06]} 71. Rxc8 {[%emt 0:00:02]} Kxf5 {[%emt 0:00:27]} 72. Kc5 {[%emt 0:00:06]} g5 {[%emt 0:00:53]} 73. Kd4 {[%emt 0:00:52]} Kf4 {[%emt 0:00:25]} 74. Rf8+ {[%emt 0:02:13]} Kg3 {[%emt 0:00:42]} 75. Ke3 {[%emt 0:02:43]} g4 {[%emt 0:00:52]} 76. Rg8 {[%emt 0:01:29]} Kh3 {[%emt 0:01:45]} 77. Kf2 {[%emt 0:00:18]} a2 {[%emt 0:00:51]} 78. Rh8# {[%emt 0:00:15]} 1-0

[Event "Israel-ch Women 2021"]
[Site "Haifa"]
[Date "2021.03.08"]
[Round "2.20"]
[White "Reprun, Nadejda"]
[Black "Shaul Seidner, Liad"]
[Result "1-0"]
[ECO "B42"]
[WhiteElo "1968"]
[BlackElo "1687"]
[Annotator "ChessBase"]
[PlyCount "123"]
[EventDate "2021.01.10"]
[EventType "swiss"]
[EventCountry "ISR"]
[SourceTitle "playchess.com"]
[Source "ChessBase"]
[SourceQuality "1"]
[TimeControl "40/5400+30:3600+30"]

1. e4 {[%emt 0:00:00]} c5 {[%emt 0:00:00]} 2. Nf3 {[%emt 0:00:00]} e6 {[%emt 0:00:00]} 3. d4 {[%emt 0:00:00]} cxd4 {[%emt 0:00:00]} 4. Nxd4 {[%emt 0:00:00]} a6 {[%emt 0:00:06]} 5. Bd3 {[%emt 0:00:06]} Bc5 {[%emt 0:00:35]} 6. Nb3 {[%emt 0:00:06]} Ba7 {[%emt 0:00:38]} 7. Qg4 {[%emt 0:01:01]} Qf6 {[%emt 0:02:25]} 8. f4 {[%emt 0:01:31]} Nh6 {[%emt 0:03:46]} 9. Qh3 {[%emt 0:05:57]} Qg6 {[%emt 0:17:56]} 10. Nc3 {[%emt 0:09:07]} Qg4 {[%emt 1:09:34]} 11. Qxg4 {[%emt 0:03:13]} Nxg4 {[%emt 0:00:00]} 12. Nd1 {[%emt 0:00:34]} b5 {[%emt 0:00:00]} 13. h3 {[%emt 0:01:42]} Nf6 {[%emt 0:00:00]} 14. Be3 {[%emt 0:01:45]} d6 {[%emt 0:00:00]} 15. Bxa7 {[%emt 0:18:43]} Rxa7 {[%emt 0:00:00]} 16. a3 {[%emt 0:01:48]} Nbd7 {[%emt 0:00:00]} 17. Nc3 {[%emt 0:00:43]} Bb7 {[%emt 0:00:00]} 18. O-O {[%emt 0:04:18]} Nc5 {[%emt 0:00:00]} 19. Nxc5 {[%emt 0:02:35]} dxc5 {[%emt 0:00:00]} 20. e5 {[%emt 0:00:37]} Nd5 {[%emt 0:00:00]} 21. Ne4 {[%emt 0:02:15]} c4 {[%emt 0:00:00]} 22. Nd6+ {[%emt 0:00:17]} Ke7 {[%emt 0:00:00]} 23. Be4 {[%emt 0:00:37]} Ba8 {[%emt 0:00:00]} 24. Bxd5 {[%emt 0:02:34]} Bxd5 {[%emt 0:00:00]} 25. c3 {[%emt 0:00:29]} Rb8 {[%emt 0:00:00]} 26. Rfd1 {[%emt 0:05:39]} g6 {[%emt 0:00:00]} 27. Kf2 {[%emt 0:05:46]} Rd7 {[%emt 0:00:00]} 28. Rd4 {[%emt 0:02:03]} Rxd6 {[%emt 0:00:00]} 29. exd6+ {[%emt 0:00:08]} Kxd6 {[%emt 0:00:00]} 30. g4 {[%emt 0:01:51]} h6 {[%emt 0:00:00]} 31. Rad1 {[%emt 0:03:11]} Kc5 {[%emt 0:00:00]} 32. f5 {[%emt 0:01:45]} Rf8 {[%emt 0:00:00]} 33. Kg3 {[%emt 0:05:48]} h5 {[%emt 0:00:00]} 34. R1d2 {[%emt 0:02:07]} h4+ {[%emt 0:05:08]} 35. Kxh4 {[%emt 0:03:39]} gxf5 {[%emt 0:01:16]} 36. gxf5 {[%emt 0:01:32]} Rh8+ {[%emt 0:00:53]} 37. Kg3 {[%emt 0:00:30]} Rh5 {[%emt 0:01:18]} 38. fxe6 {[%emt 0:01:28]} fxe6 {[%emt 0:01:05]} 39. h4 {[%emt 0:01:51]} Re5 {[%emt 0:02:19]} 40. Rf4 {[%emt 0:07:44]} a5 {[%emt 0:01:34]} 41. Rf8 {[%emt 1:01:10]} Re3+ {[%emt 1:00:21]} 42. Kg4 {[%emt 0:02:35]} Re4+ {[%emt 0:01:05]} 43. Rf4 {[%emt 0:01:33]} Re1 {[%emt 0:00:31]} 44. Kg5 {[%emt 0:00:00]} b4 {[%emt 0:00:00]} 45. h5 {[%emt 0:00:00]} bxa3 {[%emt 0:00:00]} 46. bxa3 {[%emt 0:00:00]} e5 {[%emt 0:00:00]} 47. Rh4 {[%emt 0:00:00]} e4 {[%emt 0:00:00]} 48. h6 {[%emt 0:00:00]} e3 {[%emt 0:00:00]} 49. Rxd5+ {[%emt 0:00:00]} Kxd5 {[%emt 0:00:00]} 50. h7 {[%emt 0:00:00]} e2 {[%emt 0:00:00]} 51. h8=Q {[%emt 0:00:00]} Rg1+ {[%emt 0:00:00]} 52. Kh6 {[%emt 0:00:00]} e1=Q {[%emt 0:00:00]} 53. Qd8+ {[%emt 0:00:00]} Ke6 {[%emt 0:00:00]} 54. Qe8+ {[%emt 0:00:00]} Kf5 {[%emt 0:00:00]} 55. Qf7+ {[%emt 0:00:00]} Ke5 {[%emt 0:00:00]} 56. Qe7+ {[%emt 0:00:00]} Kf5 {[%emt 0:00:00]} 57. Qc5+ {[%emt 0:00:32]} Kf6 {[%emt 0:00:00]} 58. Rf4+ {[%emt 0:00:10]} Ke6 {[%emt 0:00:00]} 59. Qxc4+ {[%emt 0:00:07]} Kd6 {[%emt 0:00:00]} 60. Rd4+ {[%emt 0:00:35]} Ke5 {[%emt 0:00:00]} 61. Qd5+ {[%emt 0:00:22]} Kf6 {[%emt 0:00:00]} 62. Rf4+ {[%emt 0:00:12]} 1-0

[Event "Israel-ch Women 2021"]
[Site "Haifa"]
[Date "2021.03.08"]
[Round "2.21"]
[White "Lian, Marina"]
[Black "Orian, Noga"]
[Result "0-1"]
[ECO "B23"]
[WhiteElo "1870"]
[BlackElo "1658"]
[Annotator "NA RC"]
[PlyCount "81"]
[EventDate "2021.01.10"]
[EventType "swiss"]
[EventCountry "ISR"]
[SourceTitle "playchess.com"]
[Source "ChessBase"]
[SourceQuality "1"]
[TimeControl "40/5400+30:3600+30"]

{[%evp 12,70,10,-26,0,1,52,10,41,4,76,79,95,94,93,95,140,146,185,181,204,222,215,264,239,85,84,107,133,104,100,35,79,72,32767,32767,44,37,145,121,32767,32767,697,32767,32767,32767,32767,32767,32767,32767,32767,32767,32767,32767,32767,32767,32767,32767,302,32767,564]} 1. e4 {[%emt 0:01:33]} c5 {[%emt 0:00:00]} 2. Nc3 {[%emt 0:00:07]} Nc6 {[%emt 0:00:00]} 3. f4 {[%emt 0:00:06]} e6 {[%emt 0:00:00]} 4. Nf3 {[%emt 0:00:08]} d5 {[%emt 0:00:00]} 5. Bb5 {[%emt 0:00:34]} d4 {[%emt 0:00:49]} 6. Ne2 {[%emt 0:03:20]} Nge7 {[%emt 0:03:58]} 7. Ng3 {[%emt 0:05:36]} Qc7 {[%emt 0:09:54]} 8. O-O {[%emt 0:14:00]} Bd7 {[%emt 0:06:54]} 9. c3 {[%emt 0:08:52]} O-O-O {[%emt 0:03:18]} 10. cxd4 {[%emt 0:02:24]} cxd4 {[%emt 0:02:28]} (10... Nxd4 $11 11. Nxd4 cxd4 12. Bxd7+ Qxd7) 11. d3 {[%emt 0:01:30]} a6 {[%emt 0:03:52]} 12. Ba4 {[%emt 0:04:26]} f6 {[%emt 0:09:21]} 13. Bd2 {[%emt 0:04:23]} Qb6 {[%emt 0:04:46]} 14. b4 {[%emt 0:06:46]} Na7 {[%emt 0:05:18]} 15. Bxd7+ {[%emt 0:05:23]} Kxd7 {[%emt 0:08:08]} 16. a4 {[%emt 0:10:04]} Nec6 {[%emt 0:03:16]} 17. b5 {[%emt 0:03:12]} axb5 {[%emt 0:03:02]} 18. a5 {[%emt 0:05:43]} (18. axb5 $18 Qxb5 19. Qc2) 18... Qa6 $1 {[%emt 0:09:19]} 19. Qb3 {[%emt 0:02:07]} Re8 {[%emt 0:13:22]} (19... b4 $14) 20. e5 {[%emt 0:00:25]} f5 {[%emt 0:03:34]} 21. Rfc1 {[%emt 0:04:04]} b4 {[%emt 0:01:50]} 22. Ne2 {[%emt 0:08:34]} ({Much weaker is} 22. Nxf5 exf5 23. Nxd4 (23. Qf7+ Be7 $15) 23... Kc8 $17) 22... Nb5 {[%emt 0:00:44]} 23. Qb2 {[%emt 0:03:56]} Qa7 {[%emt 0:02:36]} 24. Rc4 {[%emt 0:00:50]} Nc3 {[%emt 0:01:07]} ({Not} 24... Nxa5 $2 25. Rxb4 Bxb4 26. Bxb4 $18) (24... Rc8 $14) 25. Nexd4 {[%emt 0:00:21]} Nb5 {[%emt 0:04:18]} 26. Kh1 {[%emt 0:00:45]} Na3 $18 {[%emt 0:00:27]} (26... Nbxd4 27. Nxd4 Ra8 28. Nxc6 bxc6) 27. Rcc1 {[%emt 0:01:11]} Qxa5 {[%emt 0:00:33]} 28. Nxc6 {[%emt 0:01:02]} bxc6 {[%emt 0:00:02]} 29. Qd4+ {[%emt 0:01:50]} Kc7 {[%emt 0:01:00]} 30. Qf2 {[%emt 0:00:25]} Qb6 {[%emt 0:00:30]} 31. Be3 {[%emt 0:00:05]} Qa6 {[%emt 0:00:29]} 32. Nd2 {[%emt 0:00:10]} Qxd3 {[%emt 0:00:31]} 33. Bb6+ {[%emt 0:00:24]} Kb7 {[%emt 0:00:25]} 34. Ba5 {[%emt 0:00:37]} Qb5 {[%emt 0:00:23]} 35. Nb3 {[%emt 0:00:27]} Ra8 $2 {[%emt 0:00:40]} (35... Rc8) 36. Nc5+ {[%emt 0:00:26]} Kc8 {[%emt 0:00:28]} 37. Bxb4 {[%emt 0:00:50]} Qxb4 {[%emt 0:00:24]} 38. Nxe6 {[%emt 0:00:02]} Kd7 {[%emt 0:00:40]} 39. Ng5 {[%emt 0:00:39]} Bc5 {[%emt 0:00:29]} 40. e6+ {[%emt 0:00:03]} Kc7 {[%emt 0:00:28]} 41. Qc2 {[%emt 1:03:10]} 0-1